[Event "FIDE WCCC U10 2018"]
[Site "Santiago de Compostela"]
[Date "2018.11.12"]
[Round "8"]
[White "Sosa Costa, Leonardo"]
[Black "Zhao, Erick"]
[Result "0-1"]
[ECO "B42"]
[WhiteElo "1945"]
[BlackElo "1957"]
[Annotator "NA RC"]
[PlyCount "100"]
[EventDate "2018.11.04"]
[EventType "swiss"]
[EventCountry "ESP"]
[SourceTitle "playchess.com"]
[Source "ChessBase"]
[SourceQuality "1"]
[TimeControl "40/5400+30:1800+30"]

{[%evp 8,99,34,38,43,36,45,43,43,50,46,0,37,27,19,16,52,47,34,47,53,47,32767,19,19,5,37,28,66,50,63,38,92,25,38,25,36,36,25,0,30,0,0,-33,-16,32767,-10,-133,-26,-68,-79,-92,-93,-110,-95,32767,-121,-218,-259,-336,-415,-1059,32767,32767,-466,32767,32767,32767,32767,32767,-494,32767,32767,32767,-554,-761,32767,-1164,32767,-564,32767,-887,-983,32767,-5069,-4902,-1249,-29984,-29988,-29974,-29988,-29987,-29992,-29992]} 1. e4 {[%emt 0:00:00]} c5 {[%emt 0:00:00]} 2. Nf3 {[%emt 0:00:00]} e6 {[%emt 0:00:00]} 3. d4 {[%emt 0:00:00]} cxd4 {[%emt 0:00:12]} 4. Nxd4 {[%emt 0:00:00]} a6 {[%emt 0:00:08]} 5. Bd3 {[%emt 0:00:27]} Qc7 {[%emt 0:00:36]} 6. O-O {[%emt 0:00:43]} Nf6 {[%emt 0:01:17]} 7. Qe2 {[%emt 0:00:27]} d6 {[%emt 0:08:35] LiveBook: 1779 Games} 8. c4 {[%emt 0:00:40]} Nc6 {[%emt 0:02:54]} 9. Nc2 {[%emt 0:13:32] B42: Sicilian: Kan Variation: 5 Bd3} (9. Nxc6 Qxc6 10. Nc3 Be7 11. Bg5 h6 12. Bh4 Qc5 13. Rad1 Bd7 14. Kh1 Bc6 15. f3 O-O 16. f4 Rfe8 {1-0 (31) Aravindh,C (2578)-Sadikhov,U (2491) Manavgat 2018}) 9... Be7 {[%emt 0:03:06]} 10. f4 {[%emt 0:02:17]} O-O {[%emt 0:01:10]} 11. Nc3 {[%emt 0:00:50]} b6 $146 {[%emt 0:08:06]} ({Predecessor:} 11... Nd7 12. Bd2 Nc5 13. Rae1 Nxd3 14. Qxd3 Bd7 15. b3 Rad8 16. Rf3 Bc8 {1-0 (30) Heinechen,J (2160)-Sartorio,F (1557) Asuncion 2018}) 12. b3 {[%emt 0:03:46]} Bb7 {[%emt 0:04:51]} 13. Bb2 {[%emt 0:01:23]} Rfe8 {[%emt 0:07:37]} 14. Rad1 {[%emt 0:05:05]} Nd7 {[%emt 0:05:01]} 15. Ne1 {[%emt 0:05:48]} Bf6 {[%emt 0:11:52]} 16. Bb1 {[%emt 0:06:02]} Rad8 {[%emt 0:06:57]} (16... b5 $5) 17. Nf3 {[%emt 0:07:12]} Nf8 {[%emt 0:05:46]} 18. Qf2 {[%emt 0:02:48]} Ng6 {[%emt 0:04:34]} 19. Qg3 {[%emt 0:03:58]} b5 {[%emt 0:02:23] [#]} 20. f5 {[%emt 0:17:22]} (20. Nd5 $1 $16 {[%cal Rd5c7][%mdl 512]} exd5 21. Bxf6 gxf6 22. cxd5) 20... Nge5 {[%emt 0:01:50]} 21. fxe6 {[%emt 0:00:22]} fxe6 {[%emt 0:00:28]} 22. cxb5 {[%emt 0:01:45]} axb5 {[%emt 0:03:25]} 23. Kh1 {[%emt 0:00:51]} Qb6 {[%emt 0:03:19]} 24. Ne2 {[%emt 0:01:51]} ({Viel schwächer wäre} 24. Nxe5 Bxe5 25. Qh3 (25. Qf3 Rf8 $11) 25... h6 $11) (24. Nd4 $5 Nxd4 25. Rxf6 $11) 24... Rf8 $1 {[%emt 0:02:17]} 25. Nf4 {[%emt 0:04:21]} Nxf3 $1 {[%emt 0:01:50]} 26. Bxf6 {[%emt 0:00:14]} Rxf6 {[%emt 0:00:25]} 27. gxf3 {[%emt 0:00:23]} (27. Nh5 $11 Rg6 28. Qxf3) 27... Qe3 {[%emt 0:01:49]} ({Better is} 27... Rdf8 $17 28. Nh5 Rg6) 28. Nh5 {[%emt 0:01:02]} Rg6 {[%emt 0:00:41]} 29. Qf2 {[%emt 0:01:38]} Qh6 {[%emt 0:01:55]} 30. Ng3 {[%emt 0:01:00] [#]} Ne5 $1 {[%emt 0:01:31]} 31. Qb6 {[%emt 0:03:17] [#]} Rf8 $1 {[%emt 0:01:29]} 32. Qxd6 {[%emt 0:03:44]} (32. f4 $17 Ng4 33. Rd2) 32... Nxf3 {[%emt 0:01:33]} 33. Rxf3 {[%emt 0:00:56]} Rxf3 {[%emt 0:00:24]} 34. Qb8+ {[%emt 0:04:06]} (34. Qc7 $142 Rf8 35. Rd8) 34... Rf8 {[%emt 0:00:13]} 35. Rd8 {[%emt 0:00:27]} Rgf6 {[%emt 0:01:53]} (35... Qc1+ $142 36. Rd1 Qxd1+ 37. Kg2 Qf1#) 36. Rxf8+ {[%emt 0:00:58]} Rxf8 {[%emt 0:00:01]} 37. Qxb7 {[%emt 0:00:13]} Qc1+ {[%emt 0:00:04]} 38. Kg2 {[%emt 0:00:06]} Qxb1 {[%emt 0:00:05]} 39. Qxb5 {[%emt 0:03:44]} Qxa2+ {[%emt 0:00:09]} 40. Kh3 {[%emt 0:00:00]} h6 {[%emt 0:00:00]} 41. Qc4 {[%emt 0:11:38]} Rf6 {[%emt 0:04:53]} 42. Nh5 {[%emt 0:01:16]} Rf3+ {[%emt 0:01:07]} 43. Ng3 {[%emt 0:00:28]} Qxb3 {[%emt 0:00:20]} 44. Qc8+ {[%emt 0:01:31]} Kh7 {[%emt 0:00:15]} 45. Qc6 {[%emt 0:00:55]} Rf2 {[%emt 0:01:47]} 46. Qc1 {[%emt 0:03:41]} Qf3 {[%emt 0:00:53]} (46... Qa2 $142 47. Kg4 Rxh2) 47. Qg1 {[%emt 0:07:04]} h5 {[%emt 0:02:06]} 48. Qxf2 {[%emt 0:02:55]} Qxf2 {[%emt 0:00:32]} 49. Nxh5 {[%emt 0:00:13]} Qf3+ {[%emt 0:01:10]} 50. Ng3 {[%emt 0:00:11]} g5 0-1

[Event "FIDE WCCC U10 2018"]
[Site "Santiago de Compostela"]
[Date "2018.11.12"]
[Round "8"]
[White "Atanasov, Anthony"]
[Black "Dang, Anh Minh"]
[Result "0-1"]
[ECO "A45"]
[WhiteElo "1916"]
[BlackElo "1817"]
[Annotator "NA RC"]
[PlyCount "112"]
[EventDate "2018.11.04"]
[EventType "swiss"]
[EventCountry "ESP"]
[SourceTitle "playchess.com"]
[Source "ChessBase"]
[SourceQuality "1"]
[TimeControl "40/5400+30:1800+30"]

{[%evp 8,101,6,0,3,9,26,12,21,12,29,0,5,0,0,0,29,6,7,14,7,5,20,-12,12,-49,6,-17,0,-9,-13,-24,-34,-47,-30,-54,-64,-57,-61,-47,-25,-32,-7,-44,16,0,0,6,16,0,0,0,0,32767,-17,-73,-62,-92,-125,32767,-169,-200,32767,-181,-184,-153,-83,32767,32767,32767,32767,32767,32767,32767,32767,32767,32767,-285,32767,-307,-160,-188,-65,-56,0,0,0,0,0,32767,0,-104,-108,-260,0,0]} 1. d4 Nf6 2. Bf4 d5 3. e3 c5 4. c3 e6 5. Nd2 Nc6 6. Ngf3 cxd4 7. exd4 {D02: 1 d4 d5 2 Nf3 sidelines, including 2...Nf6 3 g3 and 2...Nf6 3 Bf4} Nh5 8. Be3 Bd6 {LiveBook: 104 Games} 9. g3 (9. Bd3 Nf4 10. Bxf4 Bxf4 11. g3 Bd6 12. O-O O-O 13. Re1 Bd7 14. h4 h6 {1-0 (44) Caruana,F (2822)-Aronian,L (2767) chess.com INT 2018}) 9... O-O 10. Ne5 g6 11. Ndf3 f6 12. Ng4 $1 Kh8 13. Nh6 Ng7 14. Qd2 $146 ({Predecessor:} 14. Be2 b6 {0-1 (59) Dhulipalla,B (2337)-Yilmaz,M (2614) Dubai 2017}) 14... Qa5 15. a3 Bd7 16. Bh3 Qb6 17. b4 Ne7 18. O-O (18. Ne5 $5 Be8 19. O-O $11) 18... Qc7 19. Rfe1 Nc8 20. Bf1 Nb6 21. Qc2 Rac8 22. Rac1 a6 23. Bd3 Nf5 24. Nxf5 gxf5 25. Qd2 Rf7 26. Bh6 Nc4 27. Bxc4 Qxc4 28. Bf4 Bxf4 29. Qxf4 Qb3 30. Ra1 Rxc3 31. Nd2 (31. Kg2 $11 {remains equal.}) 31... Qa4 32. Qb8+ Kg7 33. Nf1 Rxa3 34. Rxa3 Qxa3 35. Qxb7 Qc3 36. Rb1 Bb5 (36... Qxd4 $19 {and Black stays clearly on top.} 37. Qxa6 e5) 37. Qb6 Bd3 38. Rd1 Be4 39. f4 Qf3 40. Rd2 Bd3 41. Rf2 Qe4 42. Qc5 (42. Nd2 {was called for.} Qe1+ 43. Kg2) 42... Qe1 43. Kg2 Rb7 (43... h5 $19 44. h4 Be4+ 45. Kg1 Kh7) 44. Nd2 Be4+ (44... Qe3 $19 45. Qc8 Rf7) 45. Nxe4 fxe4 ({Black should try} 45... dxe4 $17 46. Qc4 Re7) 46. Qc6 $1 Qxb4 47. Qxe6 Qxd4 48. Qg4+ Kf7 49. Qh5+ (49. Qf5 $11 Rb1 50. Qxh7+ Kf8 51. Qh6+ Ke7 52. Qg7+ Kd6 53. Qf8+ Kd7 54. Qf7+ Kd6 55. Rc2) 49... Kf8 50. Qh3 {[#]} (50. Qh6+ $17 Kg8 51. Qh5) 50... Re7 $11 (50... Rc7 $1 $19 51. Ra2 {[#]} a5 $1 {[%mdl 512]} 52. Qh6+ Kg8) 51. Rc2 $1 Qd1 52. Rc8+ Kg7 53. Rb8 Qf3+ 54. Kg1 e3 55. Qc8 Qf2+ 56. Kh1 Qf1# 0-1

[Event "FIDE WCCC U10 2018"]
[Site "Santiago de Compostela"]
[Date "2018.11.12"]
[Round "8"]
[White "Hagner, Bennet"]
[Black "Deuer, Marius"]
[Result "0-1"]
[ECO "C42"]
[WhiteElo "1912"]
[BlackElo "1695"]
[Annotator "NA RC"]
[PlyCount "70"]
[EventDate "2018.11.04"]
[EventType "swiss"]
[EventCountry "ESP"]
[SourceTitle "playchess.com"]
[Source "ChessBase"]
[SourceQuality "1"]
[TimeControl "40/5400+30:1800+30"]

{[%evp 8,70,58,7,4,8,12,0,0,0,-6,0,0,-2,0,-13,3,-16,0,0,0,0,13,0,0,0,0,-17,0,-24,29,0,-2,-4,7,-30,-7,-10,4,-14,0,-29,-34,-66,-55,-103,-126,-137,-141,-717,-788,-1068,-364,-338,-366,-482,-366,-339,-409,32767,32767,32767,-29996,-29998,-29999]} 1. e4 {[%emt 0:00:00]} e5 {[%emt 0:00:00]} 2. Nf3 {[%emt 0:00:02]} Nf6 {[%emt 0:00:00]} 3. Nxe5 {[%emt 0:01:51]} d6 {[%emt 0:00:00]} 4. Nf3 {[%emt 0:00:36]} Nxe4 {[%emt 0:00:00]} 5. d3 {[%emt 0:01:11]} Nf6 {[%emt 0:00:57]} 6. d4 {[%emt 0:04:00]} d5 {[%emt 0:01:53]} 7. Be2 {[%emt 0:04:26]} Bd6 {[%emt 0:05:04]} 8. O-O {[%emt 0:00:39]} h6 {[%emt 0:01:50] C01: French: Exchange Variation} 9. c4 {[%emt 0:04:37]} dxc4 {[%emt 0:00:54]} 10. Bxc4 {[%emt 0:00:56]} O-O {[%emt 0:00:10]} 11. h3 {[%emt 0:00:43] LiveBook: 20 Partien} c6 $146 {[%emt 0:04:16]} (11... Nbd7 12. Nc3 Nb6 13. Bb3 c6 14. Qd3 Nbd5 15. Nxd5 Nxd5 16. Bc2 Nf6 17. Re1 Re8 {1-0 (63) Abasov,N (2596)-Stupak,K (2586) Baku 2017}) 12. Nc3 {[%emt 0:01:08]} Nbd7 {[%emt 0:02:05]} 13. Re1 {[%emt 0:03:24]} Nb6 {[%emt 0:04:29]} 14. Bb3 {[%emt 0:00:26]} Nbd5 {[%emt 0:02:02]} 15. Nxd5 {[%emt 0:05:36]} Nxd5 {[%emt 0:00:10]} 16. Bxd5 {[%emt 0:00:16]} cxd5 {[%emt 0:00:13]} 17. Qd3 {[%emt 0:02:15]} Be6 {[%emt 0:01:50]} 18. Ne5 {[%emt 0:02:52]} f6 {[%emt 0:05:00]} 19. Ng6 {[%emt 0:00:51]} Re8 {[%emt 0:00:05]} 20. Bf4 {[%emt 0:04:23]} Qd7 {[%emt 0:05:29]} 21. Qg3 {[%emt 0:03:56]} Bxf4 {[%emt 0:09:25]} 22. Nxf4 {[%emt 0:00:29]} Bf7 {[%emt 0:00:31]} 23. Re3 {[%emt 0:05:00]} Rxe3 {[%emt 0:02:41]} 24. fxe3 {[%emt 0:00:24]} Rc8 {[%emt 0:00:52]} 25. Nd3 {[%emt 0:06:32]} Qb5 {[%emt 0:08:54]} 26. Rd1 {[%emt 0:02:01] [#]} (26. Qg4 $1 $15 Re8 27. Qe2) 26... Rc2 $1 {[%emt 0:02:20]} 27. Qb8+ {[%emt 0:04:44] [#]} Kh7 $1 {[%emt 0:01:31]} 28. Qxa7 $2 {[%emt 0:01:01]} (28. Nf4 $17) 28... Bh5 {[%emt 0:00:33]} 29. g4 {[%emt 0:00:06]} Bg6 $2 {[%emt 0:00:04]} (29... Qe8 30. Ne5 fxe5) 30. Qa3 {[%emt 0:00:06]} Be4 {[%emt 0:03:38]} 31. Qb3 {[%emt 0:11:53]} Rg2+ {[%emt 0:25:44]} 32. Kf1 {[%emt 0:00:22]} Qc6 {[%emt 0:00:09]} 33. Nf2 {[%emt 0:11:58]} Qd6 {[%emt 0:02:42]} 34. Nxe4 {[%emt 0:00:14]} Qh2 {[%emt 0:00:04]} 35. Nxf6+ {[%emt 0:00:09]} Kh8 {[%emt 0:00:29]} 0-1

[Event "FIDE WCCC U10 2018"]
[Site "Santiago de Compostela"]
[Date "2018.11.12"]
[Round "8"]
[White "Cnejev, Vladimir-Alexandru"]
[Black "Anand, Batsukh"]
[Result "1/2-1/2"]
[ECO "B40"]
[WhiteElo "1810"]
[BlackElo "1746"]
[Annotator "NA RC"]
[PlyCount "155"]
[EventDate "2018.11.04"]
[EventType "swiss"]
[EventCountry "ESP"]
[SourceTitle "playchess.com"]
[Source "ChessBase"]
[SourceQuality "1"]
[TimeControl "40/5400+30:1800+30"]

{[%evp 8,129,7,3,18,10,18,0,16,0,2,0,0,4,0,-14,0,-26,-18,-20,-14,-7,-17,-19,-21,-25,-16,-22,-29,-30,-22,-24,-25,-28,-30,-27,-18,-14,-13,-12,-12,-18,-4,-53,-6,-41,0,0,18,32767,4,0,0,0,32767,32767,32767,0,12,0,0,-25,-20,-23,32767,32767,-31,-53,-49,-88,-95,32767,-98,-270,-303,32767,-304,-393,-293,-389,32767,32767,32767,32767,32767,32767,32767,32767,32767,-395,-674,-710,-745,-423,-520,-182,-654,-676,-700,-170,-162,-323,0,32767,-164,-922,-1147,-1303,-1793,-1166,-435,0,-531,-595,-127,-463,-191,-143,-626,-650,-137,-626,0,0]} 1. e4 {[%emt 0:00:00]} c5 {[%emt 0:01:16]} 2. Nf3 {[%emt 0:00:00]} e6 {[%emt 0:01:27]} 3. c3 {[%emt 0:00:02]} Nf6 {[%emt 0:01:21]} 4. e5 {[%emt 0:00:13]} Nd5 {[%emt 0:01:33]} 5. d4 {[%emt 0:00:08]} cxd4 {[%emt 0:01:51]} 6. cxd4 {[%emt 0:00:06]} d6 {[%emt 0:00:57]} 7. a3 {[%emt 0:00:17]} Bd7 {[%emt 0:01:19]} 8. Bd3 {[%emt 0:00:29]} Bc6 {[%emt 0:02:03]} 9. O-O {[%emt 0:00:18]} Nd7 {[%emt 0:01:24]} 10. Re1 {[%emt 0:01:35]} Rc8 {[%emt 0:01:32] LiveBook: 34 Games} 11. Bd2 {[%emt 0:01:36] B22: Sicilian: 2 c3} (11. b4 a6 12. Ng5 dxe5 13. Nxe6 fxe6 14. Qh5+ Ke7 15. dxe5 h6 16. Nc3 Nxc3 17. Bg5+ hxg5 18. Qxg5+ Nf6 19. exf6+ gxf6 20. Rxe6+ Kxe6 {0-1 (26) Arenas Vanegas,D (2490)-Topalov,V (2768) Baku 2016 CBM 175 [Ftacnik,L]}) 11... Be7 {[%emt 0:03:08]} 12. Nc3 {[%emt 0:01:54]} dxe5 {[%emt 0:02:44]} 13. dxe5 {[%emt 0:00:37]} Nxc3 {[%emt 0:02:50]} 14. Bxc3 {[%emt 0:04:19] [#]} Nc5 $146 {[%emt 0:02:13]} ({Predecessor:} 14... O-O 15. Rc1 Qc7 16. Qc2 g6 17. Qe2 Rfd8 18. h3 a6 {½-½ (74) Kleeschaetzky,R (2305)-Jaracz,P (2531) Guben 2003}) 15. Bc2 {[%emt 0:01:54]} Qxd1 {[%emt 0:02:22]} 16. Raxd1 {[%emt 0:00:38]} Na4 {[%emt 0:03:01]} 17. Bxa4 {[%emt 0:05:49]} Bxa4 {[%emt 0:00:13]} 18. Rc1 {[%emt 0:01:15]} O-O {[%emt 0:02:00]} 19. Bd4 {[%emt 0:07:04]} b6 {[%emt 0:02:45]} 20. Be3 {[%emt 0:01:37]} h6 {[%emt 0:02:06]} 21. Nd4 {[%emt 0:07:29]} Rc5 {[%emt 0:09:38]} 22. Nf3 {[%emt 0:11:23]} Rxc1 {[%emt 0:03:24]} 23. Rxc1 {[%emt 0:00:14]} Rd8 {[%emt 0:03:27]} 24. h3 {[%emt 0:02:46]} Rd7 {[%emt 0:01:49]} 25. Bd4 {[%emt 0:04:00]} Rb7 {[%emt 0:03:39]} 26. Kf1 {[%emt 0:03:39]} a5 {[%emt 0:02:50]} 27. Nd2 {[%emt 0:01:51]} Bd7 {[%emt 0:12:10]} 28. Ne4 {[%emt 0:03:13]} Bd8 {[%emt 0:07:19]} 29. Ke2 {[%emt 0:03:08]} Rc7 {[%emt 0:02:59]} 30. Rxc7 {[%emt 0:01:08]} Bxc7 {[%emt 0:00:05]} 31. g3 {[%emt 0:01:54]} Bc6 {[%emt 0:00:17]} 32. Kd3 {[%emt 0:01:17]} Kf8 {[%emt 0:01:09]} 33. Nc3 {[%emt 0:01:28]} g5 {[%emt 0:01:05]} 34. f4 {[%emt 0:04:42]} Bg2 {[%emt 0:01:13]} 35. h4 {[%emt 0:00:10]} gxf4 {[%emt 0:01:20]} 36. gxf4 {[%emt 0:02:47]} Bd8 {[%emt 0:01:35]} 37. Bf2 {[%emt 0:00:15]} Kg7 {[%emt 0:00:17]} 38. Ke2 {[%emt 0:03:53]} Kg6 {[%emt 0:00:45]} 39. b4 {[%emt 0:01:48]} Kf5 {[%emt 0:01:09]} 40. Bg3 $2 {[%emt 0:00:00]} (40. Nb5 $17 {war nötig.}) 40... Kg4 {[%emt 0:00:00]} 41. Kf2 {[%emt 0:02:33]} Bc6 {[%emt 0:01:55]} 42. b5 {[%emt 0:00:58]} Bd5 {[%emt 0:00:23]} 43. Nxd5 {[%emt 0:13:12]} exd5 {[%emt 0:00:10]} 44. h5 {[%emt 0:05:06]} a4 {[%emt 0:00:18]} 45. Kg2 {[%emt 0:06:27]} Kxh5 {[%emt 0:00:33]} 46. Kf3 $1 $11 {[%emt 0:00:28]} Bh4 {[%emt 0:01:24]} 47. Bh2 {[%emt 0:01:10]} Bd8 {[%emt 0:01:13]} 48. Bg1 $2 {[%emt 0:15:13]} Kg6 {[%emt 0:00:07]} 49. Ke3 {[%emt 0:00:15]} Kf5 {[%emt 0:01:55]} 50. Kd4 {[%emt 0:00:10]} h5 {[%emt 0:01:03]} 51. Kxd5 {[%emt 0:01:59] [#]} h4 $1 {[%emt 0:00:13]} 52. Kc6 {[%emt 0:03:47]} h3 {[%emt 0:00:08]} 53. Bh2 {[%emt 0:00:40] [#]} Kg4 {[%emt 0:00:24]} (53... Ke6 $1 54. Kb7 Kd5) 54. Kb7 {[%emt 0:05:03] [#]} (54. Kd7 $142 Bh4 55. Kc6) 54... Kf5 $2 {[%emt 0:02:44]} (54... Bh4 $1 $19 {[%cal Rh4g3]} 55. f5 Bf2) 55. Kc6 {[%emt 0:01:57] [#]} Ke4 $2 {[%emt 0:01:10]} 56. Kd6 $2 {[%emt 0:00:22]} (56. Kb7) 56... Bh4 {[%emt 0:00:24]} 57. e6 {[%emt 0:00:26]} fxe6 {[%emt 0:00:51]} 58. Kxe6 {[%emt 0:00:01]} Kf3 {[%emt 0:02:44]} (58... Bf2 $142 59. f5 Bc5) 59. f5 {[%emt 0:00:32]} Kg2 {[%emt 0:00:07]} 60. Bd6 {[%emt 0:00:33] [#]} h2 $1 {[%emt 0:00:05]} 61. Bxh2 {[%emt 0:00:01]} Kxh2 {[%emt 0:01:20]} 62. Kd6 {[%emt 0:00:39] [#]} Bf2 $1 {[%emt 0:04:27]} 63. Kc6 {[%emt 0:00:26]} Bc5 {[%emt 0:01:29]} 64. f6 {[%emt 0:00:09]} Bxa3 $11 {[%emt 0:00:33]} (64... Kg3 $5 65. f7 $8 Kh4 $11) 65. Kxb6 {[%emt 0:00:13]} Bd6 {[%emt 0:00:09]} 66. Kc6 {[%emt 0:00:39]} a3 {[%emt 0:00:09]} 67. Kxd6 {[%emt 0:00:45]} a2 {[%emt 0:00:05]} 68. f7 {[%emt 0:01:29]} a1=Q {[%emt 0:00:05]} 69. Ke7 {[%emt 0:00:09]} Qe5+ {[%emt 0:01:52]} 70. Kd8 {[%emt 0:00:52]} Qf6+ {[%emt 0:00:33]} 71. Ke8 {[%emt 0:00:06]} Qe6+ {[%emt 0:00:09]} 72. Kf8 {[%emt 0:00:05]} Kg3 {[%emt 0:01:18]} 73. b6 {[%emt 0:00:06]} Kh4 {[%emt 0:04:56]} 74. b7 {[%emt 0:00:13]} Qe5 {[%emt 0:00:29]} 75. b8=Q {[%emt 0:01:27]} Qxb8+ {[%emt 0:00:00]} 76. Kg7 {[%emt 0:00:00]} Qe5+ {[%emt 0:00:38]} 77. Kg8 {[%emt 0:00:15]} Kg5 {[%emt 0:00:16]} 78. f8=Q {[%emt 0:00:06]} 1/2-1/2

[Event "FIDE WCCC U10 2018"]
[Site "Santiago de Compostela"]
[Date "2018.11.12"]
[Round "8"]
[White "Hladky, Tadeas"]
[Black "Viswak Sen M"]
[Result "1-0"]
[ECO "C11"]
[WhiteElo "1764"]
[BlackElo "1550"]
[Annotator "NA RC"]
[PlyCount "75"]
[EventDate "2018.11.04"]
[EventType "swiss"]
[EventCountry "ESP"]
[SourceTitle "playchess.com"]
[Source "ChessBase"]
[SourceQuality "1"]
[TimeControl "40/5400+30:1800+30"]

1. e4 {[%emt 0:00:00]} e6 {[%emt 0:00:00]} 2. d4 {[%emt 0:00:00]} d5 {[%emt 0:00:00]} 3. Nc3 {[%emt 0:00:00]} Nf6 {[%emt 0:00:00]} 4. e5 {[%emt 0:00:00]} Nfd7 {[%emt 0:00:00]} 5. f4 {[%emt 0:00:12]} c5 {[%emt 0:00:00]} 6. Nf3 {[%emt 0:00:31]} Nc6 {[%emt 0:00:10]} 7. Be3 {[%emt 0:02:59]} a6 {[%emt 0:00:41]} 8. Be2 {[%emt 0:01:09]} b5 {[%emt 0:00:36]} 9. a3 {[%emt 0:08:54]} Bb7 {[%emt 0:01:48]} 10. O-O {[%emt 0:01:15]} Qb6 {[%emt 0:00:15]} 11. Bf2 {[%emt 0:01:50]} cxd4 {[%emt 0:02:11]} 12. Nxd4 {[%emt 0:03:21]} Bc5 {[%emt 0:00:51]} 13. Nxc6 {[%emt 0:01:42]} Qxc6 {[%emt 0:01:56]} 14. Bf3 {[%emt 0:02:34]} Nb6 {[%emt 0:01:22]} 15. Ne2 {[%emt 0:07:24]} Rc8 {[%emt 0:03:07]} 16. Nd4 {[%emt 0:02:24]} Bxd4 {[%emt 0:01:24]} 17. Bxd4 {[%emt 0:00:08]} Na4 {[%emt 0:04:11]} 18. Rc1 {[%emt 0:03:28]} Nc5 {[%emt 0:01:17]} 19. c4 {[%emt 0:03:41]} bxc4 {[%emt 0:05:58]} 20. Rxc4 {[%emt 0:01:33]} Qb5 {[%emt 0:00:17]} 21. Rc3 {[%emt 0:06:54]} O-O {[%emt 0:01:43]} 22. Be2 {[%emt 0:01:21]} Qxb2 {[%emt 0:02:51]} 23. Rxc5 {[%emt 0:01:01]} Qxa3 {[%emt 0:01:12]} 24. Qa1 {[%emt 0:04:01]} Qxa1 {[%emt 0:00:41]} 25. Rxa1 {[%emt 0:00:10]} Rxc5 {[%emt 0:00:07]} 26. Bxc5 {[%emt 0:00:05]} Rc8 {[%emt 0:00:05]} 27. Rb1 {[%emt 0:03:28]} Rxc5 {[%emt 0:00:29]} 28. Rxb7 {[%emt 0:00:05]} g6 {[%emt 0:00:07]} 29. Bxa6 {[%emt 0:00:50]} Ra5 {[%emt 0:03:35]} 30. Be2 {[%emt 0:01:51]} Ra1+ {[%emt 0:00:36]} 31. Kf2 {[%emt 0:01:37]} Ra2 {[%emt 0:00:24]} 32. Rb3 {[%emt 0:01:44]} Kg7 {[%emt 0:01:44]} 33. h4 {[%emt 0:01:50]} h6 {[%emt 0:00:39]} 34. Re3 {[%emt 0:03:57]} f5 {[%emt 0:02:00]} 35. exf6+ {[%emt 0:08:38]} Kxf6 {[%emt 0:00:08]} 36. Kg3 {[%emt 0:02:41]} h5 {[%emt 0:00:25]} 37. Bd3 {[%emt 0:02:27]} d4 {[%emt 0:00:34]} 38. Rxe6+ {[%emt 0:00:17]} 1-0

[Event "FIDE WCCC U10 2018"]
[Site "Santiago de Compostela"]
[Date "2018.11.12"]
[Round "8"]
[White "Wilson, Ronen"]
[Black "Bialiauski, Artsiom"]
[Result "1/2-1/2"]
[ECO "C45"]
[WhiteElo "1761"]
[BlackElo "1791"]
[Annotator "NA RC"]
[PlyCount "111"]
[EventDate "2018.11.04"]
[EventType "swiss"]
[EventCountry "ESP"]
[SourceTitle "playchess.com"]
[Source "ChessBase"]
[SourceQuality "1"]
[TimeControl "40/5400+30:1800+30"]

1. e4 {[%emt 0:00:00]} e5 {[%emt 0:01:20]} 2. Nf3 {[%emt 0:00:00]} Nc6 {[%emt 0:00:56]} 3. d4 {[%emt 0:00:29]} exd4 {[%emt 0:01:52]} 4. Nxd4 {[%emt 0:00:26]} Nf6 {[%emt 0:02:29]} 5. Nxc6 {[%emt 0:01:47]} bxc6 {[%emt 0:01:35]} 6. e5 {[%emt 0:00:37]} Qe7 {[%emt 0:04:48]} 7. Qe2 {[%emt 0:01:04]} Nd5 {[%emt 0:00:30]} 8. c4 {[%emt 0:01:05]} Ba6 {[%emt 0:02:56]} 9. g3 {[%emt 0:05:02]} g6 10. b3 {[%emt 0:01:54]} Bg7 {[%emt 0:05:26]} 11. Bb2 {[%emt 0:01:36]} O-O {[%emt 0:01:59]} 12. Bg2 {[%emt 0:01:30]} Rfe8 {[%emt 0:02:14]} 13. O-O Bxe5 {[%emt 0:02:09]} 14. Qxe5 {[%emt 0:03:53]} Qxe5 {[%emt 0:00:42]} 15. Bxe5 {[%emt 0:00:19]} Rxe5 {[%emt 0:00:06]} 16. cxd5 {[%emt 0:00:37]} Bxf1 {[%emt 0:00:08]} 17. Kxf1 {[%emt 0:00:58]} cxd5 {[%emt 0:00:11]} 18. f4 {[%emt 0:07:19]} Re3 {[%emt 0:13:59]} 19. Bxd5 {[%emt 0:10:54]} Rae8 {[%emt 0:03:10]} 20. Nd2 {[%emt 0:10:10]} Re2 {[%emt 0:16:03]} 21. Nf3 {[%emt 0:02:57]} c6 {[%emt 0:01:34]} 22. Bc4 {[%emt 0:01:39]} Rb2 {[%emt 0:00:29]} 23. Kg1 {[%emt 0:12:40]} d5 {[%emt 0:07:47]} 24. Bf1 {[%emt 0:08:18]} Re3 {[%emt 0:02:51]} 25. Ne5 {[%emt 0:02:26]} Rc3 {[%emt 0:00:57]} 26. g4 {[%emt 0:09:21]} f6 {[%emt 0:10:58]} 27. Nd7 {[%emt 0:03:18]} Kf7 {[%emt 0:06:34]} 28. g5 fxg5 {[%emt 0:00:27]} 29. fxg5 {[%emt 0:03:52]} Re3 {[%emt 0:01:38]} 30. Nf6 {[%emt 0:03:12]} Re5 {[%emt 0:03:39]} 31. h4 {[%emt 0:00:46]} Kg7 {[%emt 0:01:43]} 32. Rc1 {[%emt 0:02:48]} h6 {[%emt 0:03:43]} 33. Ng4 {[%emt 0:03:17]} Re6 {[%emt 0:00:47]} 34. Nxh6 {[%emt 0:00:35]} Re4 {[%emt 0:00:29]} 35. Rxc6 {[%emt 0:00:49]} Rxh4 {[%emt 0:00:07]} 36. Bd3 {[%emt 0:01:32]} Rh3 {[%emt 0:00:31]} 37. Rc7+ {[%emt 0:00:42]} Kf8 {[%emt 0:00:29]} 38. Rf7+ {[%emt 0:00:17]} Ke8 {[%emt 0:00:03]} 39. Bb5+ {[%emt 0:00:00]} Kd8 {[%emt 0:00:00]} 40. Rd7+ {[%emt 0:00:00]} Kc8 {[%emt 0:00:00]} 41. Rxd5 {[%emt 0:09:01]} Rg3+ {[%emt 0:02:05]} 42. Kf1 {[%emt 0:00:54]} Rxa2 {[%emt 0:02:06]} 43. Bc4 {[%emt 0:03:33]} Rh3 {[%emt 0:05:11]} 44. Rc5+ {[%emt 0:07:41]} Kd7 {[%emt 0:01:40]} 45. Kg1 {[%emt 0:03:10]} Rg3+ {[%emt 0:01:45]} 46. Kf1 {[%emt 0:00:42]} Rh3 {[%emt 0:04:46]} 47. Kg1 {[%emt 0:01:25]} Rg3+ {[%emt 0:07:14]} 48. Kf1 {[%emt 0:00:36]} Rh3 {[%emt 0:01:14]} 49. Bd5 {[%emt 0:06:54]} Rd3 {[%emt 0:05:16]} 50. Bc6+ {[%emt 0:01:12]} Kd6 {[%emt 0:00:34]} 51. Rc1 {[%emt 0:00:13]} Rxb3 {[%emt 0:01:38]} 52. Nf7+ {[%emt 0:00:30]} Ke6 {[%emt 0:01:54]} 53. Re1+ {[%emt 0:00:59]} Kxf7 54. Bd5+ {[%emt 0:00:25]} Kf8 {[%emt 0:03:15]} 55. Bxb3 {[%emt 0:00:14]} Ra5 {[%emt 0:00:12]} 56. Rc1 1/2-1/2